lending/lending_fUSD_20251125
["ID","MTS","AMOUNT","RATE_DAILY","PERIOD"]
[394910534,1764109851111,-3587.99213867,0.0004194,7]
[394910536,1764109851122,-433.11325893,0.0004194,7]
[394910539,1764109851132,-616.96786905,0.0004194,7]
[394910541,1764109851144,-533.76,0.0004194,7]
[394910905,1764109862026,5000.0,0.00024523,120]
[394910906,1764109862257,5000.0,0.00023794,120]
[394910907,1764109863523,520.99547997,0.00024522,120]
[394910908,1764109865052,200.0,0.00024522,120]
[394910909,1764109865147,200.0,0.00022293,120]
[394910910,1764109924083,200.0,0.00024523,120]
[394910911,1764109924114,200.0,0.00023297,120]
[394910918,1764110237733,212.130146,0.00013699,2]
[394910919,1764110237759,211.279854,0.00013699,2]
[394910923,1764110380317,-423.41,0.00020187,2]
[394910931,1764111031972,-3027.61162637,0.00024199,2]
[394910932,1764111031981,-173.58810178,0.00024201,47]
[394910933,1764111031991,-1200.0,0.00024299,2]
[394910934,1764111032000,-300.0,0.000243,2]
[394910935,1764111032009,-300.0,0.000243,2]
[394910936,1764111032019,-823.0,0.00024301,2]
[394910937,1764111032028,-1257.0,0.00024301,2]
[394910938,1764111032037,-660.0,0.00024301,2]
[394910939,1764111032046,-2715.0,0.00024301,2]
[394910940,1764111032055,-177.70568084,0.00024372,2]
[394910941,1764111032064,-125.07681363,0.00025,2]
[394910942,1764111032079,-26.16318637,0.00025,2]
[394910943,1764111032088,-212.76442578,0.00025587,2]
[394910944,1764111032098,-173.58810173,0.00026158,51]
[394910945,1764111032107,-423.41,0.00026676,2]
[394910946,1764111032116,-858.147,0.00027301,2]
[394910947,1764111032125,-173.58810173,0.00028116,56]
[394910948,1764111032133,-1083.27692438,0.0002814,5]
[394910949,1764111032144,-12.72307562,0.0002814,5]
[394910950,1764111032153,-173.58810173,0.00030073,61]
[394910951,1764111032162,-153.71,0.00031584,2]
[394910952,1764111032172,-173.58810173,0.00032031,65]
[394910953,1764111032181,-423.41,0.00033165,2]
[394910954,1764111032190,-65.43591145,0.00033927,2]
[394910955,1764111032200,-184.56408855,0.00033927,2]
[394910956,1764111032209,-113.14401145,0.00033927,2]
[394910957,1764111032219,-886.85598855,0.00033927,2]
[394910958,1764111032232,-173.58810173,0.00033988,70]
[394910959,1764111032241,-166.66,0.00034921,30]
[394910960,1764111032250,-571.0,0.00035025,2]
[394910961,1764111032259,-236.09,0.00035067,2]
[394910962,1764111032269,-166.66,0.00035656,30]
[394910963,1764111032278,-173.58810173,0.00035946,75]
[394910964,1764111032288,-500.0,0.00036123,30]
[394910965,1764111032296,-212.503,0.00036252,44]
[394910966,1764111032307,-166.66,0.00036392,30]
[394910967,1764111032316,-530.29213172,0.00036392,30]
[394910968,1764111032325,-197.34812686,0.00036562,30]
[394910969,1764111032334,-500.0,0.00036707,30]
[394910971,1764111032343,-150.0,0.0003677,2]
[394910973,1764111032352,-500.0,0.00036838,30]
[394910975,1764111032361,-676.52954514,0.00036887,30]
[394910977,1764111032370,-5000.0,0.00036952,2]
[394910980,1764111032379,-547.80669174,0.00036976,30]
[394910983,1764111032387,-166.66,0.00037127,30]
[394910986,1764111032396,-999.0,0.00037135,3]
[394910989,1764111032405,-166.66,0.00037862,30]
[394910992,1764111032414,-173.58810173,0.00037903,79]
[394910995,1764111032423,-1000.0,0.00037981,120]
[394910997,1764111032431,-1000.0,0.00038168,2]
[394911000,1764111032440,-1000.0,0.00038223,2]
[394911003,1764111032449,-206.88284477,0.00038356,2]
[394911005,1764111032457,-236.09,0.00038491,2]
[394911007,1764111032467,-166.66,0.00038597,30]
[394911008,1764111032476,-152.57,0.00039095,2]
[394911009,1764111032485,-150.0,0.00039095,2]
[394911010,1764111032494,-500.0,0.00039176,2]
[394911011,1764111032503,-243.78,0.00039265,120]
[394911012,1764111032511,-500.0,0.00039348,2]
[394911013,1764111032521,-500.0,0.00039348,8]
[394911014,1764111032530,-695.5,0.00039348,8]
[394911015,1764111032539,-557.35,0.00039348,8]
[394911016,1764111032548,-500.0,0.00039348,8]
[394911017,1764111032557,-500.0,0.0003945,2]
[394911018,1764111032566,-500.0,0.00039622,2]
[394911020,1764111032575,-500.0,0.00039622,8]
[394911021,1764111032583,-695.5,0.00039622,8]
[394911023,1764111032592,-557.35,0.00039622,8]
[394911025,1764111032602,-500.0,0.00039622,8]
[394911027,1764111032610,-30397.9771,0.00039626,2]
[394911029,1764111032619,-423.41,0.00039654,2]
[394911031,1764111032628,-500.0,0.00039724,2]
[394911033,1764111032638,-25000.0,0.00039726,15]
[394911035,1764111032647,-173.58810173,0.00039861,84]
[394911037,1764111032656,-500.0,0.00039896,2]
[394911039,1764111032665,-500.0,0.00039896,8]
[394911041,1764111032674,-695.5,0.00039896,8]
[394911043,1764111032683,-557.35,0.00039896,8]
[394911045,1764111032692,-500.0,0.00039896,8]
[394911047,1764111032701,-500.0,0.00039998,2]
[394911049,1764111032710,-500.0,0.00039999,5]
[394911051,1764111032720,-200.0,0.00039999,2]
[394911053,1764111032729,-500.0,0.0004017,2]
[394911055,1764111032738,-500.0,0.0004017,8]
[394911057,1764111032747,-695.5,0.0004017,8]
[394911059,1764111032757,-557.35,0.0004017,8]
[394911061,1764111032766,-500.0,0.0004017,8]
[394911063,1764111032775,-166.65299396,0.00040296,7]
[394911065,1764111032784,-500.0,0.00040444,2]
[394911067,1764111032795,-500.0,0.00040444,8]
[394911069,1764111032804,-695.5,0.00040444,8]
[394911071,1764111032814,-557.35,0.00040444,8]
[394911073,1764111032823,-500.0,0.00040444,8]
[394911075,1764111032832,-1294.45043479,0.00040658,120]
[394911077,1764111032841,-604.85619832,0.00040659,2]
[394911079,1764111032850,-2158.71253723,0.000407,117]
[394911082,1764111032862,-999.0,0.000407,117]
[394911084,1764111032873,-2884.28746277,0.000407,117]
[394911085,1764111032882,-950.98,0.00040705,30]
[394911086,1764111032891,-305.92764804,0.00040705,30]
[394911087,1764111032902,-645.05235196,0.00040705,30]
[394911088,1764111032911,-950.98,0.00040705,30]
[394911089,1764111032920,-70.84971638,0.00040705,30]
[394911614,1764111038125,-880.13028362,0.00040705,30]
[394911616,1764111038136,-565.0,0.00040711,30]
[394911618,1764111038145,-500.0,0.00040718,2]
[394911620,1764111038154,-406.60373915,0.00040718,8]
[394911622,1764111038163,-695.5,0.00040718,8]
[394911624,1764111038173,-557.35,0.00040718,8]
[394911626,1764111038182,-500.0,0.00040718,8]
[394911628,1764111038191,-950.98,0.00040979,30]
[394911630,1764111038200,-950.98,0.00040979,30]
[394911632,1764111038209,-500.0,0.00040992,2]
[394911634,1764111038219,-695.5,0.00040992,8]
[394911636,1764111038229,-557.35,0.00040992,8]
[394911638,1764111038241,-500.0,0.00040992,8]
[394911640,1764111038250,-220.99566368,0.000411,2]
[394911643,1764111038261,-176.58849018,0.000411,2]
[394911644,1764111038270,-565.0,0.0004113,30]
[394911647,1764111038281,-154.95813028,0.00041153,15]
[394911649,1764111038291,-133.49337968,0.00041163,120]
[394911651,1764111038302,-1897.34812686,0.00041163,120]
[394911653,1764111038314,-1109.46875634,0.00041163,120]
[394911846,1764111040153,-1360.95947265,0.00041163,120]
[394911848,1764111040163,-154.95813027,0.00041251,15]
[394911866,1764111040321,-950.98,0.00041253,30]
[394911868,1764111040330,-950.98,0.00041253,30]
[394911870,1764111040340,-500.0,0.00041266,2]
[394911872,1764111040350,-695.5,0.00041266,8]
[394911874,1764111040359,-557.35,0.00041266,8]
[394911876,1764111040367,-335.79481692,0.00041266,8]
[394911879,1764111040379,-164.20518308,0.00041266,8]
[394911881,1764111040390,-154.95813027,0.00041349,15]
[394911883,1764111040400,-154.95813027,0.00041447,15]
[394911884,1764111040410,-950.98,0.00041527,30]
[394911886,1764111040421,-950.98,0.00041527,30]
[394911889,1764111040432,-500.0,0.0004154,2]
[394911890,1764111040441,-695.5,0.0004154,8]
[394911892,1764111040451,-557.35,0.0004154,8]
[394911895,1764111040461,-500.0,0.0004154,8]
[394911897,1764111040471,-154.95813027,0.00041544,15]
[394911899,1764111040481,-180.1357145,0.0004155,7]
[394911901,1764111040493,-1078.8642855,0.0004155,7]
[394911903,1764111040503,-565.0,0.0004155,30]
[394911905,1764111040511,-500.0,0.00041641,8]
[394911907,1764111040520,-500.0,0.00041641,2]
[394911909,1764111040529,-154.95813027,0.00041642,15]
[394911911,1764111040538,-317.25250124,0.00041669,7]
[394911913,1764111040547,-1000.0,0.00041699,4]
[394911915,1764111040556,-163.37639173,0.00041738,120]
[394911917,1764111040566,-154.95813027,0.0004174,15]
[394911919,1764111040574,-163.37639172,0.00041771,120]
[394911921,1764111040583,-1000.0,0.00041799,7]
[394911923,1764111040596,-664.30133854,0.00041801,30]
[394911925,1764111040607,-254.35801595,0.00041801,30]
[394911927,1764111040618,-32.32064551,0.00041801,30]
[394911929,1764111040627,-930.56152008,0.00041801,30]
[394911931,1764111040638,-20.41847992,0.00041801,30]
[394911933,1764111040647,-163.37639172,0.00041805,120]
[394911935,1764111040656,-254.74364071,0.00041814,2]
[394911937,1764111040667,-245.25635929,0.00041814,2]
[394911939,1764111040675,-101.05254055,0.00041814,8]
[394911941,1764111040686,-536.6355,0.00041814,8]
[394911944,1764111040697,-57.81195945,0.00041814,8]
[394911946,1764111040706,-557.35,0.00041814,8]
[394911948,1764111040715,-500.0,0.00041814,8]
[394911950,1764111040724,-173.58810173,0.00041818,89]
[394911952,1764111040733,-724.61128882,0.00041822,7]
[394911955,1764111040744,-271.37002482,0.00041822,7]
[394911957,1764111040755,-4.01868636,0.00041822,7]
[394911959,1764111040765,-1623.97084956,0.00041838,15]
[394911961,1764111040777,-9301.4321686,0.00041838,15]
[394911963,1764111040786,-154.95813027,0.00041838,15]
[394911965,1764111040798,-752.16068987,0.00041838,2]
[394911967,1764111040807,-1465.22980298,0.00041838,28]
[394911969,1764111040817,-1660.124273,0.00041838,2]
[394911971,1764111040826,-932.40125588,0.00041838,120]
[394911973,1764111040835,-163.37639172,0.00041838,120]
[394911975,1764111040844,-10053.56740966,0.00041838,2]
[394911977,1764111040853,-537.85405751,0.00041838,2]
[394911979,1764111040862,-1000.0,0.00041839,5]
[394911981,1764111040871,-1000.0,0.00041839,7]
[394911983,1764111040880,-1000.0,0.00041839,7]
[394911985,1764111040889,-5000.0,0.0004184,120]
[394911987,1764111040899,-1000.0,0.00041869,3]
[394911989,1764111040907,-295.49395946,0.0004187,108]
[394911991,1764111040916,-500.0,0.00041875,2]
[394911993,1764111040925,-500.0,0.00041899,8]
[394911995,1764111040935,-366.26701873,0.00041899,8]
[394912316,1764111044087,-840.51735961,0.000411,2]
[394912319,1764111044097,-161.96298127,0.00041899,8]
[394912321,1764111044107,-564.15464967,0.00041899,8]
[394912324,1764111044118,-277.84535033,0.00041899,8]
[394912326,1764111044127,-214.46559517,0.000419,120]
[394912328,1764111044137,-181.40291425,0.000419,120]
[394912330,1764111044146,-166.47085679,0.000419,120]
[394912333,1764111044165,-479.03300446,0.000419,120]
[394912335,1764111044175,-567.0,0.000419,22]
[394912337,1764111044186,-500.0,0.00041915,2]
[394912339,1764111044196,-594.84245675,0.00041915,8]
[394912341,1764111044208,-727.45672583,0.00041915,8]
[394912343,1764111044220,-3760.42081742,0.00041915,8]
[394912346,1764111044231,-408.01416217,0.00041915,8]
[394912348,1764111044245,-787.72,0.00041915,8]
[394912350,1764111044254,-738.55,0.00041915,8]
[394912352,1764111044263,-1000.0,0.00041916,2]
[394912354,1764111044275,-236.09,0.00041916,120]
[394912356,1764111044284,-154.30584658,0.00041917,2]
[394912358,1764111044294,-1000.0,0.00041917,7]
[394912360,1764111044303,-1000.0,0.00041917,7]
[394912362,1764111044314,-292.70117,0.00041917,11]
[394912364,1764111044323,-250.76,0.00041918,90]
[394912366,1764111044331,-1000.0,0.00041918,8]
[394912368,1764111044341,-500.0,0.00041918,120]
[394912370,1764111044350,-150.54,0.00041928,2]
[394912372,1764111044360,-150.54,0.00041928,2]
[394912374,1764111044369,-150.54,0.00041928,2]
[394912376,1764111044378,-150.54,0.00041928,2]
[394912378,1764111044387,-150.54,0.00041928,2]
[394912380,1764111044396,-150.54,0.00041928,2]
[394912382,1764111044405,-150.54,0.00041928,2]
[394912384,1764111044415,-150.54,0.00041928,2]
[394912386,1764111044424,-150.54,0.00041928,2]
[394912388,1764111044434,-150.54,0.00041928,2]
[394912390,1764111044443,-150.54,0.00041928,2]
[394912392,1764111044452,-150.54,0.00041928,2]
[394912394,1764111044461,-150.54,0.00041928,2]
[394912396,1764111044470,-150.54,0.00041928,2]
[394912398,1764111044480,-150.54,0.00041928,2]
[394912400,1764111044490,-150.54,0.00041928,2]
[394912402,1764111044499,-150.54,0.00041928,2]
[394912404,1764111044509,-150.54,0.00041928,2]
[394912406,1764111044518,-150.54,0.00041928,2]
[394912408,1764111044527,-150.54,0.00041928,2]
[394912410,1764111044537,-150.54,0.00041928,2]
[394912412,1764111044546,-150.54,0.00041928,2]
[394912414,1764111044555,-150.54,0.00041928,2]
[394912417,1764111044565,-150.54,0.00041928,2]
[394912419,1764111044574,-150.54,0.00041928,2]
[394912421,1764111044583,-150.54,0.00041928,2]
[394912423,1764111044593,-150.54,0.00041928,2]
[394912425,1764111044602,-150.54,0.00041928,2]
[394912427,1764111044611,-150.54,0.00041928,2]
[394912429,1764111044620,-157.0,0.00041928,30]
[394912431,1764111044629,-500.0,0.00041937,120]
[394912433,1764111044639,-500.0,0.00041937,8]
[394912435,1764111044648,-4252.56,0.00041937,8]
[394912437,1764111044657,-49032.65849392,0.00041938,21]
[394912439,1764111044667,-66980.68137263,0.00041938,7]
[394912453,1764111044796,-494.06036348,0.00041938,7]
[394912456,1764111044810,-585.08214075,0.00041938,7]
[394912458,1764111044824,-328.26696821,0.00041937,8]
[394912460,1764111044835,-171.73303179,0.00041937,8]
[394912462,1764111044845,-328.26696821,0.00041938,7]
[394912581,1764111046177,-151.0,0.00041928,2]
[394912583,1764111046186,-1881.54106507,0.00041938,7]
[394912590,1764111046243,-2433.92932378,0.00041938,7]
[394912596,1764111046304,-4522.137525,0.00041938,7]
[394912599,1764111046317,-3800.0,0.00041938,7]
[394912601,1764111046328,-474.356646,0.00041938,7]
[394912608,1764111046398,-408.41756331,0.00041938,7]
[394912611,1764111046409,-408.51155989,0.00041938,7]
[394912616,1764111046457,-611.6312158,0.00041938,7]
[394912878,1764111428084,10000.01,7.945e-05,2]
[394912879,1764111428106,10000.01,7.945e-05,2]
[394912880,1764111428129,2968.444108,7.945e-05,2]
[394912881,1764111510189,2706.23257548,7.945e-05,2]
[394912882,1764111792386,-150.0,0.00024302,2]
[394912883,1764111861450,-200.0,0.00025517,120]
[394912884,1764111929883,-195.0,0.00026732,120]
[394912885,1764111929912,-264.19239521,0.00026732,120]
[394912886,1764111929932,-200.0,0.00026732,120]
[394912887,1764111929954,-140.80760479,0.00027302,2]
[394912896,1764112232224,-9.19239521,0.00027302,2]
[394912898,1764112232235,-383.0,0.00027302,2]
[394912901,1764112232243,-200.0,0.00030032,120]
[394912903,1764112232253,-236.23760213,0.00038356,2]
[394912904,1764112232262,-220.44693866,0.0004,30]
[394912905,1764112232272,-779.55306134,0.0004,30]
[394912906,1764112232281,-1500.0,0.000405,2]
[394912907,1764112232291,-200.0,0.0004055,2]
[394912908,1764112232302,-877.42809916,0.0004067,2]
[394912909,1764112232312,-527.0,0.00040711,30]
[394912910,1764112232323,-1238.92024383,0.00040959,2]
[394912911,1764112232332,-189.0,0.00040999,5]
[394912912,1764112232341,-300.0,0.00040999,5]
[394912913,1764112232350,-238.57726699,0.00041,10]
[394912914,1764112232361,-1108.76250193,0.00041,10]
[394912915,1764112232372,-653.94812092,0.00041,10]
[394912916,1764112232382,-911.69251022,0.00041,30]
[394912917,1764112232393,-2422.07999342,0.00041,30]
[394912918,1764112232404,-7431.04452769,0.00041,30]
[394912919,1764112232426,-4748.43296867,0.00041,30]
[394912920,1764112232435,-2265.66,0.00041,2]
[394912921,1764112232447,-1000.0,0.00041063,120]
[394912922,1764112232457,-339.44972478,0.00041067,30]
[394912923,1764112232468,-380.41235983,0.0004109,30]
[394912924,1764112232479,-308.47764017,0.0004109,30]
[394912925,1764112232488,-159.16,0.00041096,2]
[394912926,1764112232499,-396.26235983,0.000411,2]
[394912927,1764112232512,-197.95592978,0.000411,2]
[394912928,1764112232522,-302.04407022,0.0004113,30]
[394912929,1764112232538,-224.95592978,0.0004113,30]
[394912930,1764112232547,-518.79707022,0.0004155,30]
[394912940,1764112238250,-8.20292978,0.0004155,30]
[394912941,1764112238259,-170.002,0.0004175,62]
[394912942,1764112238268,-243.91764,0.000418,10]
[394912943,1764112238278,-294.0,0.000418,4]
[394912944,1764112238287,-373.86107022,0.00041837,2]
[394912945,1764112238298,-1106.7101771,0.00041837,2]
[394912946,1764112238320,-884.70037941,0.00041837,2]
[394912947,1764112238439,-1396.79217327,0.00041837,2]
[394912948,1764112238448,-4077.57874292,0.00041838,15]
[394912949,1764112238459,-1288.49102909,0.00041838,15]
[394912950,1764112238500,-403.33336201,0.00041838,15]
[394912952,1764112240382,-153.05814458,0.00041838,15]
[394912953,1764112240392,-1309.12362738,0.00041838,120]
[394912954,1764112240403,-3690.87637262,0.00041838,120]
[394912955,1764112240412,-500.0,0.00041899,8]
[394912956,1764112240423,-500.0,0.00041899,8]
[394912957,1764112240434,-1000.0,0.00041899,7]
[394912958,1764112240444,-181.40291425,0.000419,120]
[394912959,1764112240454,-166.47085679,0.000419,120]
[394912960,1764112240464,-383.22640357,0.000419,120]
[394912961,1764112240474,-266.83075066,0.000419,22]
[394912962,1764112240487,-300.16924934,0.000419,22]
[394912963,1764112240496,-480.19490613,0.00041916,7]
[394912964,1764112240511,-519.80509387,0.00041916,7]
[394912965,1764112240521,-76.49290613,0.00041917,7]
[394912966,1764112240533,-311.98467859,0.00041917,7]
[394912967,1764112240543,-524.9326699,0.00041917,7]
[394912968,1764112240554,-86.58974538,0.00041917,7]
[394912969,1764112240563,-561.11127105,0.00041927,2]
[394912970,1764112240574,-438.88872895,0.00041927,2]
[394912971,1764112240582,-215.56127105,0.00041927,7]
[394912972,1764112240595,-784.43872895,0.00041927,7]
[394912973,1764112240605,-151.0,0.00041928,2]
[394912974,1764112240615,-1000.0,0.00041936,15]
[394912975,1764112240627,-1000.0,0.00041936,7]
[394912976,1764112240638,-1000.0,0.00041936,7]
[394912977,1764112240647,-500.0,0.00041936,120]
[394912978,1764112240656,-426.14286567,0.00041937,31]
[394912979,1764112240665,-180.65915201,0.00041937,31]
[394912980,1764112240675,-500.0,0.00041937,31]
[394912981,1764112240684,-500.0,0.00041937,31]
[394912982,1764112240697,-373.7644166,0.00041937,31]
[394912983,1764112240706,-421.53802136,0.00041937,31]
[394912984,1764112240716,-500.0,0.00041937,31]
[394912985,1764112240728,-210.10085835,0.00041937,31]
[394912986,1764112240740,-289.89914165,0.00041937,31]
[394912987,1764112240749,-581.70226416,0.00041937,31]
[394912988,1764112240758,-231.94620586,0.00041937,31]
[394912989,1764112240768,-500.0,0.00041937,31]
[394912990,1764112240778,-313.69123108,0.00041937,31]
[394912991,1764112240787,-500.0,0.00041937,31]
[394912992,1764112240796,-500.0,0.00041937,31]
[394912993,1764112240805,-535.01525607,0.00041937,31]
[394912994,1764112240814,-500.0,0.00041937,31]
[394912995,1764112240823,-500.0,0.00041937,31]
[394912996,1764112240831,-372.04619652,0.00041937,15]
[394912997,1764112240840,-175.29172354,0.00041937,15]
[394912998,1764112240849,-500.0,0.00041937,31]
[394912999,1764112240858,-500.0,0.00041937,31]
[394913000,1764112240866,-500.0,0.00041937,31]
[394913001,1764112240875,-500.0,0.00041937,31]
[394913002,1764112240886,-500.0,0.00041937,31]
[394913003,1764112240895,-500.0,0.00041937,31]
[394913004,1764112240903,-500.0,0.00041937,31]
[394913005,1764112240913,-500.0,0.00041937,31]
[394913006,1764112240922,-598.48401874,0.00041937,31]
[394913007,1764112240931,-500.0,0.00041937,31]
[394913008,1764112240941,-500.0,0.00041937,31]
[394913009,1764112240950,-500.0,0.00041937,31]
[394913010,1764112240959,-500.0,0.00041937,31]
[394913011,1764112240968,-500.0,0.00041937,31]
[394913012,1764112240977,-181.9161864,0.00041937,31]
[394913013,1764112241031,-318.0838136,0.00041937,31]
[394913014,1764112241040,-500.0,0.00041937,31]
[394913015,1764112241051,-500.0,0.00041937,31]
[394913016,1764112241060,-500.0,0.00041937,31]
[394913017,1764112241069,-500.0,0.00041937,31]
[394913018,1764112241079,-500.0,0.00041937,8]
[394913019,1764112241089,-500.0,0.00041937,8]
[394913020,1764112241099,-506.22,0.00041937,8]
[394913021,1764112241108,-806.91,0.00041937,8]
[394913022,1764112241117,-199.71,0.00041937,30]
[394913023,1764112241128,-500.0,0.00041937,2]
[394913024,1764112241138,-500.0,0.00041937,2]
[394913025,1764112241148,-208.14195783,0.00041937,120]
[394913026,1764112241159,-291.85804217,0.00041937,120]
[394913027,1764112241168,-643.3706622,0.00041937,8]
[394913028,1764112241179,-4227.5693378,0.00041937,8]
[394913029,1764112241189,-500.0,0.00041937,8]
[394913030,1764112241198,-4075.37,0.00041937,8]
[394913031,1764112241208,-1000.0,0.00041937,7]
[394913032,1764112241217,-1000.0,0.00041937,7]
[394913033,1764112241226,-707.78,0.00041937,8]
[394913034,1764112241235,-754.9,0.00041937,8]
[394913035,1764112241244,-500.0,0.00041937,8]
[394913036,1764112241254,-500.0,0.00041937,31]
[394913037,1764112241264,-566.4982243,0.00041937,31]
[394913038,1764112241274,-691.0,0.00041938,7]
[394913039,1764112241283,-4233.22970114,0.00041938,30]
[394913040,1764112241294,-1241.61231828,0.00041938,30]
[394913041,1764112241305,-18.57803142,0.00041938,30]
[394913042,1764112241316,-2139.75690537,0.00041938,30]
[394913043,1764112241327,-935.57819344,0.00041938,30]
[394913044,1764112241337,-751.66775334,0.00041938,30]
[394913045,1764112241348,-919.71294345,0.00041938,30]
[394913046,1764112241360,-676.291,0.00041938,30]
[394913056,1764112244101,-160.91753972,0.00041937,2]
[394913057,1764112244111,-70.41325524,0.00041938,30]
[394913058,1764112244120,-5493.42005084,0.00041938,30]
[394913059,1764112244131,-5493.42005084,0.00041938,30]
[394913060,1764112244142,-5493.42005084,0.00041938,30]
[394913061,1764112244151,-3700.92515172,0.00041938,21]
[394913062,1764112244162,-379.0853321,0.00041938,21]
[394913063,1764112244174,-659.24843962,0.00041938,21]
[394913064,1764112244185,-8948.53365244,0.00041938,21]
[394913065,1764112244197,-527.50353436,0.00041938,21]
[394913066,1764112245083,-1602.30727724,0.00041938,21]
[394913067,1764112245094,-1492.81581133,0.00041938,21]
[394913068,1764112245145,-716.00576166,0.00041938,21]
[394913073,1764112246339,-372.16785001,0.00041938,21]
[394913074,1764112246399,-2006.62381347,0.00041938,21]
[394913075,1764112246410,-938.43794,0.00041938,21]
[394913076,1764112246421,-639.22380711,0.00041938,21]
[394913077,1764112246466,-954.40013043,0.00041938,21]
[394913078,1764112246529,-1579.05074547,0.00041938,21]
[394913079,1764112246538,-3346.1595998,0.00041938,2]
[394913080,1764112246547,-151.0,0.00041938,120]
[394913081,1764112246556,-151.0,0.00041938,120]
[394913082,1764112246565,-151.0,0.00041938,120]
[394913083,1764112246575,-151.0,0.00041938,120]
[394913084,1764112246584,-151.0,0.00041938,14]
[394913085,1764112246592,-151.0,0.00041938,14]
[394913086,1764112246601,-151.0,0.00041938,14]
[394913087,1764112246610,-151.0,0.00041938,120]
[394913088,1764112246619,-151.0,0.00041938,120]
[394913089,1764112246630,-151.0,0.00041938,120]
[394913090,1764112246639,-151.0,0.00041938,120]
[394913091,1764112246648,-151.0,0.00041938,120]
[394913092,1764112246657,-151.0,0.00041938,120]
[394913093,1764112246667,-236.74952,0.00041938,120]
[394913094,1764112246675,-151.0,0.00041938,120]
[394913095,1764112246685,-151.0,0.00041938,120]
[394913096,1764112246697,-151.0,0.00041938,120]
[394913097,1764112246706,-151.0,0.00041938,120]
[394913098,1764112246715,-151.0,0.00041938,120]
[394913099,1764112246724,-157.075539,0.00041938,120]
[394913100,1764112246734,-151.0,0.00041938,120]
[394913101,1764112246743,-151.0,0.00041938,120]
[394913102,1764112246752,-151.0,0.00041938,120]
[394913103,1764112246761,-203.856488,0.00041938,120]
[394913105,1764112246771,-151.0,0.00041938,120]
[394913107,1764112246780,-151.0,0.00041938,120]
[394913108,1764112246789,-151.0,0.00041938,120]
[394913109,1764112246801,-300.87764,0.00041938,120]
[394913110,1764112246811,-151.0,0.00041938,30]
[394913111,1764112246820,-273.260292,0.00041938,30]
[394913112,1764112246830,-18126.81352438,0.00041938,7]
[394913113,1764112246843,-3802.928,0.00041938,7]
[394913114,1764112246855,-640.92342789,0.00041938,7]
[394913118,1764112599779,-908.0,0.00026531,2]
[394913120,1764112828915,371.47,0.00013699,2]
[394913121,1764112863492,195.0,0.00022206,120]
[394913124,1764113048527,300.51454079,0.00022206,120]
[394913129,1764113356489,-423.71216559,0.000153,2]
[394913152,1764113437449,-371.47,0.00020187,2]
[394913153,1764113437459,-371.47,0.00026676,2]
[394913154,1764113437468,-153.71,0.0003232,2]
[394913155,1764113437478,-194.01059968,0.00033165,2]
[394913156,1764113437489,-177.45940032,0.00033165,2]
[394913157,1764113437499,-173.58810173,0.00036953,77]
[394913158,1764113437508,-500.0,0.00037053,30]
[394913159,1764113437517,-500.0,0.00037053,30]
[394913160,1764113437526,-413.11489795,0.00037053,30]
[394913161,1764113437537,-86.88510205,0.00037053,30]
[394913162,1764113437547,-328.46760903,0.00037053,30]
[394913163,1764113437558,-171.53239097,0.00037053,30]
[394913164,1764113437567,-660.60762316,0.00037053,30]
[394913165,1764113437576,-500.0,0.00037053,30]
[394913166,1764113437586,-700.0,0.00037053,30]
[394913167,1764113437595,-802.65187314,0.00037053,30]
[394913168,1764113437604,-500.0,0.00037053,30]
[394913169,1764113437613,-500.0,0.00037053,30]